bitfinex/quotes_ETHUSD_20250411
["timestamp","ask_amount","ask_price","bid_price","bid_amount"]
[1744341764654,6.49876,1538.8,1538.6,0.14222009]
[1744341767553,12.9977,1538.8,1538.6,0.14222009]
[1744341767756,6.49876,1538.8,1538.6,0.14222009]
[1744341767919,12.99754,1538.8,1538.6,0.14222009]
[1744341768124,6.49899,1538.7,1538.6,0.14222009]
[1744341768338,6.49899,1538.7,1538.4,12.13267836]
[1744341768668,6.49899,1538.7,1538.5,0.60634114]
[1744341769045,6.49899,1538.7,1538.6,0.14222009]
[1744341769734,6.49899,1538.7,1538.4,12.13267836]
[1744341769928,6.49899,1538.7,1538.6,0.14222009]
[1744341770253,6.49899,1538.7,1538.4,12.13267836]
[1744341770454,6.49899,1538.7,1538.5,0.50603572]
[1744341770641,6.49899,1538.7,1538.5,1.11239645]
[1744341771042,6.49899,1538.7,1538.5,0.50603572]
[1744341771356,6.49899,1538.7,1538.5,0.14222009]
[1744341771521,7.28959,1538.7,1538.5,0.14222009]
[1744341772350,6.49899,1538.7,1538.5,0.14222009]
[1744341773235,6.49941,1538.6,1538.5,0.14222009]
[1744341773564,6.49899,1538.7,1538.5,0.14222009]
[1744341775665,6.49941,1538.6,1538.5,0.14222009]
[1744341776528,6.49899,1538.7,1538.5,0.14222009]
[1744341776729,12.99739,1538.8,1538.5,0.14222009]
[1744341777137,6.49863,1538.8,1538.5,6.64205009]
[1744341777339,13.32321,1538.9,1538.6,0.7784]
[1744341777534,19.82159,1538.9,1538.6,0.92192021]
[1744341778142,6.49888,1538.8,1538.6,0.14352021]
[1744341778328,6.49983,1538.5,1538.4,4.84442836]
[1744341778558,6.49983,1538.5,1538.4,5.45103406]
[1744341779070,6.49983,1538.5,1538.4,4.84442836]
[1744341779575,12.99826,1538.7,1538.4,5.62282836]
[1744341779735,12.99826,1538.7,1538.4,6.1851112]
[1744341780038,12.99923,1538.6,1538.4,5.62282836]
[1744341780660,9.49865,1538.8,1538.4,5.62282836]
[1744341780846,6.49865,1538.8,1538.5,7.1072309]
[1744341781370,6.49865,1538.8,1538.6,0.36459828]
[1744341781547,6.49865,1538.8,1538.6,0.97211918]
[1744341781868,12.99742,1538.8,1538.6,0.97211918]
[1744341782069,6.49865,1538.8,1538.6,0.36459828]
[1744341782369,6.49865,1538.8,1538.7,0.60783791]
[1744341782930,9.112436,1538.8,1538.7,0.60783791]
[1744341783135,12.112436,1538.8,1538.7,0.60783791]
[1744341783349,12.112436,1538.8,1538.3,4.84442836]
[1744341783350,6.49941,1538.6,1538.5,0.60783791]
[1744341784073,12.99919,1538.6,1538.4,0.60783791]
[1744341784374,6.49983,1538.5,1538.4,0.60783791]
[1744341784876,6.49941,1538.6,1538.5,4.84442836]
[1744341785388,7.31496,1538.7,1538.5,5.45226627]
[1744341785589,9.49875,1538.8,1538.5,6.5953604]
[1744341785761,6.49901,1538.7,1538.5,5.98752249]
[1744341786289,6.49901,1538.7,1538.6,0.60790039]
[1744341787904,9.49875,1538.8,1538.6,0.97268902]
[1744341788110,6.49875,1538.8,1538.6,0.97268902]
[1744341788481,6.49875,1538.8,1538.7,0.60790039]
[1744341788689,6.49875,1538.8,1538.6,0.60790039]
[1744341789109,6.49875,1538.8,1538.7,0.60790039]
[1744341789710,6.49875,1538.8,1538.6,0.60790039]
[1744341789881,12.99763,1538.8,1538.6,0.60790039]
[1744341790079,12.99763,1538.8,1538.7,0.60790039]
[1744341790306,12.99763,1538.8,1538.7,0.75105648]
[1744341790685,18.113293,1538.8,1538.7,0.14315609]
[1744341791210,12.9988,1538.7,1538.5,0.60813558]
[1744341791413,6.4994,1538.7,1538.5,0.60813558]
[1744341791610,6.4994,1538.7,1538.6,0.60813558]
[1744341791809,6.4994,1538.7,1538.5,0.60813558]
[1744341792424,6.4994,1538.7,1538.6,0.60813558]
[1744341792908,6.4994,1538.7,1538.5,0.60813558]
[1744341793208,6.4994,1538.7,1538.6,0.97301115]
[1744341794191,10.26384,1539.0,1538.6,1.73191115]
[1744341794407,6.49731,1539.1,1538.8,6.49844]
[1744341794586,6.49731,1539.1,1538.9,0.649844]
[1744341794781,7.26335,1539.2,1538.9,0.649844]
[1744341794984,6.49634,1539.4,1539.1,7.25602]
[1744341795187,6.49624,1539.4,1539.2,0.60793458]
[1744341795993,6.4958,1539.5,1539.1,13.75326]
[1744341796214,6.4958,1539.5,1539.1,15.128586]
[1744341796708,6.4958,1539.5,1539.2,6.49681]
[1744341796895,7.26133,1539.6,1539.2,12.99353]
[1744341797223,7.26133,1539.6,1539.2,6.49672]
[1744341797423,7.26133,1539.6,1539.2,12.99343]
[1744341797788,13.75676,1539.6,1539.2,6.49671]
[1744341797987,7.26133,1539.6,1539.2,12.99342]
[1744341798224,13.75678,1539.6,1539.2,6.49671]
[1744341798524,6.49523,1539.6,1539.2,6.49666]
[1744341798731,13.31398,1539.7,1539.3,7.2552]
[1744341798948,13.31398,1539.7,1539.4,6.49599]
[1744341799448,6.49568,1539.5,1539.3,0.7589]
[1744341800044,12.99076,1539.6,1539.3,0.7589]
[1744341800230,6.49538,1539.6,1539.3,0.7589]
[1744341800430,6.49538,1539.6,1539.3,2.21603283]
[1744341800939,6.49538,1539.6,1539.3,8.71247283]
[1744341801364,0.7661,1540.0,1539.4,0.7589]
[1744341801519,0.7661,1540.2,1539.7,0.7589]
[1744341801712,0.1,1540.4,1540.1,6.49299]
[1744341801713,0.8661,1540.4,1540.1,6.49299]
[1744341801908,0.8661,1540.4,1540.1,6.49288]
[1744341801909,0.1,1540.4,1540.1,6.49288]
[1744341802120,3.02414168,1540.4,1540.1,6.49288]
[1744341802324,6.49308,1540.1,1540.0,0.7589]
[1744341802552,6.49266,1540.2,1539.8,7.25302]
[1744341803003,6.49266,1540.2,1539.9,6.49392]
[1744341803207,6.49287,1540.2,1539.8,7.25308]
[1744341803406,6.49287,1540.2,1539.9,6.49387]
[1744341803603,6.49373,1540.0,1539.6,7.25408]
[1744341803840,6.49323,1540.1,1539.7,6.4947]
[1744341804049,6.49323,1540.1,1539.7,6.49453]
[1744341804247,12.98658,1540.1,1539.7,6.49453]
[1744341804546,0.1,1540.4,1540.2,0.7589]
[1744341804920,6.49248,1540.3,1540.0,0.7589]
[1744341805324,6.49292,1540.2,1539.8,6.49411]
[1744341805512,6.49292,1540.2,1539.8,7.25301]
[1744341805707,13.08399,1540.4,1539.9,6.49359]
[1744341805921,6.49227,1540.3,1539.9,6.49359]
[1744341806140,6.49227,1540.3,1539.9,12.98735]
[1744341806336,6.49227,1540.3,1539.9,14.361975]
[1744341806545,6.59187,1540.4,1540.0,6.4931]
[1744341806711,6.59187,1540.4,1540.0,12.98652]
[1744341806911,13.08395,1540.4,1540.1,0.7723]
[1744341807917,6.59187,1540.4,1540.1,0.7723]
[1744341808115,6.59187,1540.4,1540.1,7.2653]
[1744341808560,0.1,1540.4,1540.1,8.64097]
[1744341808745,0.1,1540.4,1540.2,6.49251]
[1744341809926,0.1,1540.4,1540.1,15.1339]
[1744341810564,3.0,1540.3,1539.9,0.7723]
[1744341810853,12.9873,1540.0,1539.7,0.7723]
[1744341811062,0.8256,1540.1,1539.5,11.33998836]
[1744341811063,6.49434,1539.8,1539.5,12.11228836]
[1744341811233,6.49386,1540.0,1539.5,12.11218836]
[1744341811433,12.98826,1539.9,1539.6,1.21121884]
[1744341812665,6.49351,1540.0,1539.7,6.49472]
[1744341812854,6.49393,1539.9,1539.6,7.70606884]
[1744341813262,6.49393,1539.9,1539.6,6.49485]
[1744341814253,0.8256,1540.1,1539.7,6.49462]
[1744341814254,13.81208,1540.1,1539.7,6.49462]
[1744341814453,7.31875,1540.1,1539.7,6.49455]
[1744341814660,0.9256,1540.4,1539.8,10.19076168]
[1744341814968,6.59203,1540.4,1540.0,13.759]
[1744341815178,13.0842,1540.4,1540.0,8.64154]
[1744341815356,6.49226,1540.3,1540.0,8.64154]
[1744341815538,6.59203,1540.4,1540.0,15.13487]
[1744341815871,6.59203,1540.4,1540.0,15.13483]
[1744341816248,6.49227,1540.3,1540.0,2.1482]
[1744341817278,6.59203,1540.4,1540.0,8.64161]
[1744341817461,6.59203,1540.4,1540.1,0.864161]
[1744341817680,13.08422,1540.4,1540.1,0.864161]
[1744341817868,0.1,1540.4,1540.3,9.41638168]
[1744341818031,3.19470326,1540.7,1540.6,7.26327]
[1744341818238,6.48763,1541.4,1541.1,0.7723]
[1744341818559,6.48768,1541.4,1541.1,0.7723]
[1744341818873,0.8256,1541.6,1541.1,0.7723]
[1744341819078,6.48909,1541.1,1540.8,0.7723]
[1744341819264,7.31415,1541.2,1540.8,7.26224]
[1744341819466,6.48953,1541.0,1540.8,0.7723]
[1744341819638,6.4889,1541.1,1540.8,0.7723]
[1744341821175,6.48982,1540.9,1540.6,0.7723]
[1744341822480,3.0,1541.0,1540.4,7.26407]
[1744341822787,6.49057,1540.7,1540.4,0.7723]
[1744341823080,6.49017,1540.8,1540.4,0.7723]
[1744341823379,6.48931,1541.0,1540.5,6.49099]
[1744341823677,6.48977,1540.9,1540.5,12.98238]
[1744341824269,6.48931,1541.0,1540.6,6.49088]
[1744341824474,12.97888,1541.0,1540.6,6.49088]
[1744341824676,6.48931,1541.0,1540.6,6.49088]
[1744341824887,6.48931,1541.0,1540.6,12.98168]
[1744341825223,13.765411,1541.0,1540.6,6.4908]
[1744341825347,7.275801,1541.0,1540.6,6.4908]
[1744341825546,7.275801,1541.0,1540.6,12.98155]
[1744341825881,0.786491,1541.0,1540.7,6.49043]
[1744341826084,14.35365,1541.1,1540.7,7.26273]
[1744341826480,6.48892,1541.1,1540.7,7.26262]
[1744341826682,6.48833,1541.3,1540.9,6.48944]
[1744341826843,0.8256,1541.5,1541.0,0.7723]
[1744341827051,6.48698,1541.6,1541.2,6.48815]
[1744341827382,6.48698,1541.6,1541.3,7.26025]
[1744341827383,7.866875,1541.6,1541.3,7.26025]
[1744341827588,1.379895,1541.6,1541.3,7.26009]
[1744341827786,6.48605,1541.8,1541.4,6.48759]
[1744341827991,0.3941673,1541.9,1541.6,7.25904]
[1744341828176,6.8797373,1541.9,1541.6,0.7723]
[1744341828350,1.73064903,1541.9,1541.6,7.25873]
[1744341828684,1.73064903,1541.9,1541.6,0.7723]
[1744341828884,8.21628903,1541.9,1541.6,0.7723]
[1744341829292,6.8796773,1541.9,1541.6,0.7723]
[1744341829501,6.48634,1541.7,1541.4,7.25985]
[1744341829701,6.48634,1541.7,1541.4,0.7723]
[1744341829998,0.55,1541.7,1541.2,0.7723]
[1744341830229,6.48719,1541.5,1541.2,0.7723]
[1744341830700,6.48929,1541.0,1540.7,0.7723]
[1744341830901,6.48904,1541.1,1540.7,7.26271]
[1744341831100,12.97726,1541.2,1540.8,6.49012]
[1744341831305,6.48896,1541.1,1540.8,6.49012]
[1744341831519,6.48896,1541.1,1540.7,0.7723]
[1744341831815,6.48858,1541.2,1540.8,6.48999]
[1744341831976,12.97734,1541.2,1540.8,6.48999]
[1744341832176,6.48888,1541.1,1540.7,7.26263]
[1744341832373,6.48974,1540.9,1540.7,0.7723]
[1744341832577,6.49018,1540.8,1540.6,4.84442836]
[1744341832806,6.48974,1540.9,1540.6,4.84442836]
[1744341833027,6.48974,1540.9,1540.6,11.33530836]
[1744341833175,13.80438,1541.0,1540.6,11.33535836]
[1744341833375,6.48859,1541.2,1540.8,6.48984]
[1744341833609,13.80216,1541.3,1540.8,7.26214]
[1744341833914,6.48823,1541.3,1541.0,6.48922]
[1744341834088,6.48863,1541.2,1540.8,13.75228]
[1744341834282,6.48823,1541.3,1540.9,6.4897]
[1744341834497,12.9765,1541.3,1540.9,6.4897]
[1744341834729,6.48765,1541.4,1541.0,6.48917]
[1744341835036,6.48636,1541.7,1541.4,0.7723]
[1744341835508,6.48659,1541.7,1541.4,0.7723]
[1744341835687,12.97214,1541.8,1541.4,7.25974]
[1744341835891,6.48595,1541.8,1541.4,7.25974]
[1744341836099,6.8797373,1541.9,1541.4,7.25983]
[1744341836302,6.8797373,1541.9,1541.5,6.4868]
[1744341836518,6.8798073,1541.9,1541.5,6.48703]
[1744341836723,0.3941673,1541.9,1541.6,6.48672]
[1744341836876,6.8797873,1541.9,1541.6,6.48672]
[1744341837082,6.8797873,1541.9,1541.5,6.48712]
[1744341837283,0.3941673,1541.9,1541.6,6.4866]
[1744341837728,6.8797173,1541.9,1541.5,6.48712]
[1744341837909,6.8797173,1541.9,1541.5,12.97407]
[1744341838216,6.48605,1541.8,1541.4,0.7723]
[1744341838418,6.48605,1541.8,1541.4,7.25961]
[1744341838634,9.8796773,1541.9,1541.4,7.25961]
[1744341838635,6.48693,1541.6,1541.4,0.7723]
[1744341838783,3.9441673,1541.9,1541.1,1.26328329]
[1744341838784,3.7665,1541.7,1541.1,1.26328329]
[1744341838983,6.4877,1541.4,1541.1,1.26328329]
[1744341839185,12.97554,1541.4,1541.1,0.7876]
[1744341839580,6.48845,1541.2,1541.1,0.7876]
[1744341839895,6.48845,1541.2,1540.9,7.27727]
[1744341840283,6.48694,1541.6,1541.2,0.7876]
[1744341840487,3.7665,1541.7,1541.2,0.7876]
[1744341840722,6.48676,1541.6,1541.2,0.7876]
[1744341840925,6.48821,1541.3,1541.0,0.7876]
[1744341841084,6.48867,1541.2,1541.0,0.7876]
[1744341841507,6.48804,1541.3,1541.0,0.7876]
[1744341841710,6.48863,1541.2,1540.8,6.49008]
[1744341841899,7.0376,1541.4,1540.8,0.7876]
[1744341841900,6.48892,1541.1,1540.8,0.7876]
[1744341842198,12.97804,1541.1,1540.8,0.7876]
[1744341842402,12.97975,1540.9,1540.7,4.84442836]
[1744341842622,6.48933,1541.0,1540.7,4.84442836]
[1744341842923,6.48978,1540.9,1540.7,4.84442836]
[1744341843121,6.48978,1540.9,1540.5,0.7876]
[1744341843122,6.49028,1540.8,1540.5,0.7876]
[1744341843330,6.49079,1540.7,1540.5,0.7876]
[1744341843479,6.49121,1540.6,1540.4,4.84442836]
[1744341843685,6.49061,1540.7,1540.4,4.84442836]
[1744341843885,6.49061,1540.7,1540.4,11.33617836]
[1744341844104,19.7826,1540.8,1540.4,11.33617836]
[1744341844307,13.2922,1540.8,1540.4,11.33617836]
[1744341844500,19.78262,1540.8,1540.4,11.33617836]
[1744341844751,6.48976,1540.9,1540.5,6.49137]
[1744341845053,12.97985,1540.9,1540.6,0.7876]
[1744341845351,6.49031,1540.8,1540.4,5.63202836]
[1744341845550,6.49031,1540.8,1540.5,7.09284228]
[1744341845704,6.48975,1540.9,1540.5,7.09284228]
[1744341845906,6.48975,1540.9,1540.5,6.49136]
[1744341846404,6.49031,1540.8,1540.4,7.279]
[1744341846640,6.49031,1540.8,1540.4,13.77064]
[1744341846845,6.49031,1540.8,1540.5,0.60209504]
[1744341847046,6.49031,1540.8,1540.5,7.09346504]
[1744341847520,6.49031,1540.8,1540.5,6.49137]
[1744341848153,6.49031,1540.8,1540.4,7.279]
[1744341848154,12.98074,1540.8,1540.4,7.279]
[1744341848451,6.49094,1540.7,1540.5,0.60253161]
[1744341848650,6.49094,1540.7,1540.4,0.7876]
[1744341849144,6.49017,1540.8,1540.4,0.7876]
[1744341849349,6.48977,1540.9,1540.5,6.49138]
[1744341849537,6.49015,1540.8,1540.5,6.49138]
[1744341849734,6.48977,1540.9,1540.5,6.49138]
[1744341849911,12.97985,1540.9,1540.5,6.49138]
[1744341850445,6.48977,1540.9,1540.5,6.49118]
[1744341850747,0.7665,1541.1,1540.8,6.48996]
[1744341850905,7.30425,1541.3,1540.7,0.753]
[1744341851111,6.49097,1540.6,1540.5,0.753]
[1744341851341,6.49061,1540.7,1540.5,0.753]
[1744341851540,0.55,1540.9,1540.3,0.7992]
[1744341851747,6.49058,1540.7,1540.3,0.7992]
[1744341851931,6.49062,1540.7,1540.4,6.49167]
[1744341852105,6.49062,1540.7,1540.3,7.29119]
[1744341852309,6.49013,1540.8,1540.3,0.7992]
[1744341852522,7.494143,1540.8,1540.3,0.7992]
[1744341852755,6.49113,1540.6,1540.3,0.7992]
[1744341853045,6.49113,1540.6,1540.3,7.29135]
[1744341853252,12.98235,1540.6,1540.3,0.7992]
[1744341853745,6.49048,1540.8,1540.4,6.49164]
[1744341853947,6.48974,1540.9,1540.6,0.7992]
[1744341854623,6.48935,1541.0,1540.6,7.28997]
[1744341854938,6.48935,1541.0,1540.7,6.49039]
[1744341855270,12.97795,1541.1,1540.7,6.49039]
[1744341855448,6.4893,1541.0,1540.7,6.49039]
[1744341855751,6.4893,1541.0,1540.6,13.78073]
[1744341855935,6.4893,1541.0,1540.7,6.49051]
[1744341856130,6.4902,1540.8,1540.6,0.7992]
[1744341857364,12.97921,1541.0,1540.6,0.7992]
[1744341857658,12.97921,1541.0,1540.6,7.29015]
[1744341857860,6.48973,1540.9,1540.6,7.29015]
[1744341858158,0.793,1541.0,1540.6,0.7992]
[1744341858317,6.49085,1540.7,1540.4,0.7992]
[1744341858513,6.49122,1540.6,1540.4,0.7992]
[1744341858915,6.49063,1540.7,1540.4,0.7992]
[1744341859345,6.49104,1540.6,1540.4,0.7992]
[1744341860862,6.49139,1540.5,1540.2,5.64362836]
[1744341861023,6.49139,1540.5,1540.2,12.13625836]
[1744341861364,13.77431,1540.7,1540.3,6.49222]
[1744341861566,6.49061,1540.7,1540.3,6.49222]
[1744341861725,6.49061,1540.7,1540.3,12.98432]
[1744341861917,12.98139,1540.7,1540.3,6.4921]
[1744341863762,6.49114,1540.6,1540.2,7.78262246]
[1744341864062,6.49114,1540.6,1540.2,14.27506246]
[1744341865161,6.49018,1540.8,1540.2,1.29001246]
[1744341865462,6.49103,1540.6,1540.2,1.29001246]
[1744341865623,6.49141,1540.5,1540.2,7.78245246]
[1744341865961,6.49141,1540.5,1540.3,0.60264127]
[1744341865962,12.98308,1540.5,1540.3,0.60264127]
[1744341866156,6.49141,1540.5,1540.3,0.60264127]
[1744341866361,6.49141,1540.5,1540.2,1.29001246]
[1744341866519,12.98314,1540.5,1540.2,1.29001246]
[1744341866726,6.49202,1540.4,1540.2,0.7992]
[1744341866962,12.98422,1540.4,1540.2,0.7992]
[1744341867464,6.49202,1540.4,1540.2,0.7992]
[1744341867666,6.49184,1540.4,1540.2,0.7992]
[1744341869462,6.49145,1540.5,1540.3,0.60445247]
[1744341869638,6.49105,1540.6,1540.3,0.96699531]
[1744341869835,12.98224,1540.6,1540.4,0.60445247]
[1744341870163,12.98224,1540.6,1540.3,0.36254284]
[1744341870642,6.49145,1540.5,1540.3,0.36254284]
[1744341871359,12.98392,1540.4,1540.2,0.7992]
[1744341871741,6.49182,1540.4,1540.2,0.7992]
[1744341871943,6.49182,1540.4,1540.3,0.60475247]
[1744341872835,6.49182,1540.4,1540.2,0.7992]
[1744341873167,12.98384,1540.4,1540.2,0.7992]
[1744341873365,0.7611,1540.5,1540.0,0.765]
[1744341873366,6.49224,1540.3,1540.0,0.765]
[1744341873667,12.98477,1540.3,1540.0,0.765]
[1744341873862,6.49267,1540.2,1540.0,0.765]
[1744341874072,6.49267,1540.2,1540.1,0.60489672]
[1744341874278,6.49224,1540.3,1540.1,0.96776391]
[1744341874632,6.49224,1540.3,1540.1,0.36286719]
[1744341874833,6.4919,1540.4,1540.1,0.36286719]
[1744341875033,6.4919,1540.4,1540.1,6.85590719]
[1744341875370,6.4919,1540.4,1540.2,0.60481755]
[1744341876032,12.98399,1540.4,1540.2,0.60481755]
[1744341876236,6.4919,1540.4,1540.2,0.60481755]
[1744341876436,12.98399,1540.4,1540.1,0.60481755]
[1744341876634,6.49226,1540.3,1540.1,0.60481755]
[1744341877063,6.49149,1540.5,1540.1,7.09765755]
[1744341877275,6.49149,1540.5,1540.2,14.35507755]
[1744341877476,6.49106,1540.6,1540.2,8.22525312]
[1744341877639,6.49182,1540.4,1540.3,0.60481755]
[1744341878177,6.49182,1540.4,1540.2,0.765]
[1744341878378,6.49153,1540.5,1540.2,0.765]
[1744341878680,6.4919,1540.4,1540.2,0.765]
[1744341880298,12.984,1540.4,1540.2,0.765]
[1744341880583,6.49224,1540.3,1540.0,7.75432586]
[1744341881086,12.9847,1540.3,1540.0,1.26088586]
[1744341881242,12.9847,1540.3,1540.1,0.96826224]
[1744341881445,6.49266,1540.2,1540.1,0.96826224]
[1744341881644,6.49266,1540.2,1540.1,0.36306877]
[1744341881847,6.49266,1540.2,1540.0,0.36306877]
[1744341881848,6.49308,1540.1,1540.0,0.36306877]
[1744341882242,6.49266,1540.2,1540.0,0.36306877]
[1744341882442,7.25552,1540.6,1540.2,0.7903]
[1744341882739,9.49157,1540.5,1540.2,0.7903]
[1744341882953,13.74675,1540.6,1540.3,0.60479814]
[1744341883147,6.49102,1540.6,1540.3,0.60479814]
[1744341883395,12.98222,1540.6,1540.3,0.60479814]
[1744341883561,12.98221,1540.6,1540.3,0.60479814]
[1744341885094,12.98221,1540.6,1540.2,7.28276]
[1744341885524,6.49142,1540.5,1540.2,7.28276]
[1744341885810,12.98303,1540.5,1540.2,0.7903]
[1744341886017,6.49186,1540.4,1540.2,0.7903]
[1744341886199,6.49186,1540.4,1540.3,0.60512807]
[1744341886387,6.49142,1540.5,1540.3,0.60512807]
[1744341887377,12.98217,1540.6,1540.3,0.60512807]
[1744341889415,6.49146,1540.5,1540.3,0.60512807]
[1744341889821,6.49104,1540.6,1540.4,0.60512807]
[1744341890324,12.98236,1540.6,1540.4,0.60512807]
[1744341890538,6.49139,1540.5,1540.4,0.60512807]
[1744341890844,6.49139,1540.5,1540.3,0.60512807]
[1744341892354,12.98306,1540.5,1540.3,0.60512807]
[1744341892503,13.74756,1540.5,1540.3,0.60512807]
[1744341895040,6.49182,1540.4,1540.3,0.60512807]
[1744341895342,6.49182,1540.4,1540.3,0.96862478]
[1744341896661,6.49182,1540.4,1540.3,0.60512807]
[1744341897150,7.866591,1540.4,1540.3,0.60512807]
[1744341897498,6.49224,1540.3,1540.2,0.60512807]
[1744341897950,12.98476,1540.3,1540.1,4.84442836]
[1744341898134,6.49224,1540.3,1540.1,4.84442836]
[1744341898325,6.49224,1540.3,1540.1,5.62282836]
[1744341898525,6.49224,1540.3,1540.2,0.6058135]
[1744341900047,7.30588,1540.4,1540.2,0.6058135]
[1744341900539,6.49224,1540.3,1540.2,0.6058135]
[1744341901246,13.79791,1540.4,1540.2,0.6058135]
[1744341901651,7.30588,1540.4,1540.2,0.6058135]
[1744341901820,6.49224,1540.3,1540.2,0.6058135]
[1744341902016,6.49224,1540.3,1540.1,0.6058135]
[1744341902208,6.49266,1540.2,1540.1,0.6058135]
[1744341902555,12.98466,1540.3,1540.1,0.6058135]
[1744341902734,12.98471,1540.3,1540.1,0.9693152]
[1744341903048,6.49224,1540.3,1540.1,0.3635017]
[1744341903851,3.896,1540.5,1540.2,0.60572018]
[1744341903852,6.4914,1540.5,1540.2,0.60572018]
[1744341904006,12.9813,1540.7,1540.3,7.09796018]
[1744341904204,6.49102,1540.6,1540.3,7.09796018]
[1744341904418,12.98147,1540.7,1540.4,0.3635017]
[1744341905249,6.49099,1540.6,1540.4,0.3635017]
[1744341905545,12.9822,1540.6,1540.4,0.3635017]
[1744341905745,7.30539,1540.5,1540.4,0.3635017]
[1744341905954,7.85539,1540.5,1540.4,0.3635017]
[1744341906115,6.49211,1540.4,1540.1,0.3635017]
[1744341906307,12.98422,1540.4,1540.1,0.3635017]
[1744341906509,7.30541,1540.5,1540.3,4.84442836]
[1744341906810,6.49141,1540.5,1540.3,4.84442836]
[1744341907143,13.79614,1540.6,1540.3,5.62282836]
[1744341907347,6.49142,1540.5,1540.3,5.62282836]
[1744341908449,12.98302,1540.5,1540.3,5.62282836]
[1744341908831,6.49142,1540.5,1540.3,5.62282836]
[1744341909007,6.49098,1540.6,1540.3,5.62282836]
[1744341909211,13.27221689,1540.8,1540.3,0.7784]
[1744341909212,13.30533,1540.8,1540.3,0.7784]
[1744341909411,19.7957,1540.8,1540.4,6.49157]
[1744341909607,6.4906,1540.7,1540.4,6.49157]
[1744341909836,12.98153,1540.7,1540.5,0.60488914]
[1744341910023,12.98153,1540.7,1540.5,0.96785785]
[1744341910226,6.4906,1540.7,1540.5,0.96785785]
[1744341910424,6.4906,1540.7,1540.5,0.36296871]
[1744341911045,6.49104,1540.6,1540.4,0.6046036]
[1744341911218,6.49104,1540.6,1540.3,7.27045]
[1744341911759,6.49104,1540.6,1540.4,0.36280405]
[1744341912565,12.98151,1540.7,1540.4,0.36280405]
[1744341912861,6.49113,1540.6,1540.4,0.36280405]
[1744341913026,6.49113,1540.6,1540.4,4.84442836]
[1744341913027,6.49139,1540.5,1540.4,4.84442836]
[1744341913357,7.25873,1540.6,1540.4,4.84442836]
[1744341913544,6.49113,1540.6,1540.4,4.84442836]
[1744341914139,3.0,1540.7,1540.4,4.84442836]
[1744341914339,20.56306,1540.8,1540.4,11.33608836]
[1744341914658,20.56306,1540.8,1540.5,0.60486816]
[1744341914659,20.5631,1540.8,1540.5,0.60486816]
[1744341914867,20.5631,1540.8,1540.5,0.967786]
[1744341915370,6.49058,1540.7,1540.5,0.967786]
[1744341915547,6.49058,1540.7,1540.5,0.36291784]
[1744341915860,12.98151,1540.7,1540.5,0.36291784]
[1744341916237,6.49058,1540.7,1540.5,0.36291784]
[1744341916424,6.49097,1540.6,1540.5,0.36291784]
[1744341916630,6.49097,1540.6,1540.5,0.60458167]
[1744341916934,6.49058,1540.7,1540.5,0.60458167]
[1744341917250,12.98136,1540.7,1540.5,0.60458167]
[1744341917450,6.49058,1540.7,1540.5,0.60458167]
[1744341917642,12.98134,1540.7,1540.5,0.60458167]
[1744341918159,6.49097,1540.6,1540.5,0.60458167]
[1744341918366,6.49097,1540.6,1540.4,5.44901003]
[1744341918668,6.49058,1540.7,1540.4,4.84442836]
[1744341918834,6.49058,1540.7,1540.5,0.60468824]
[1744341919769,12.98137,1540.7,1540.5,0.60468824]
[1744341920276,6.49058,1540.7,1540.5,0.60468824]
[1744341920512,6.48902,1541.1,1540.7,7.31611]
[1744341920647,7.25607,1541.2,1540.8,7.09449824]
[1744341920845,7.25607,1541.2,1540.8,13.58447824]
[1744341921061,14.05927,1541.4,1541.0,0.8258]
[1744341921269,16.081197,1541.4,1541.0,0.8258]
[1744341921452,12.97656,1541.3,1541.0,0.8258]
[1744341921651,3.0,1541.3,1540.8,0.8258]
[1744341921974,6.48888,1541.1,1540.8,0.8258]
[1744341922361,6.48888,1541.1,1540.8,7.31593]
[1744341922557,12.97801,1541.1,1540.8,0.8258]
[1744341924275,7.25689,1541.0,1540.9,4.84442836]
[1744341924961,6.48929,1541.0,1540.9,4.84442836]
[1744341925677,6.48888,1541.1,1540.9,4.84442836]
[1744341926686,12.97802,1541.1,1540.9,4.84442836]
[1744341926894,6.48929,1541.0,1540.9,4.84442836]
[1744341927483,6.48929,1541.0,1540.8,0.8258]
[1744341928356,12.9781,1541.1,1540.8,0.8258]
[1744341928979,6.48933,1541.0,1540.8,0.8258]
[1744341930990,2.021927,1541.4,1540.8,0.8258]
[1744341931192,12.97659,1541.3,1541.0,0.8252]
[1744341932052,6.48853,1541.2,1541.0,0.8252]
[1744341932256,12.97731,1541.2,1541.0,0.8252]
[1744341932577,6.48779,1541.4,1541.0,7.31429]
[1744341932781,6.48721,1541.5,1541.1,6.48862]
[1744341933490,12.97572,1541.4,1541.0,7.31441]
[1744341933696,12.97572,1541.4,1541.0,7.31432]
[1744341933879,6.4878,1541.4,1541.0,13.80339]
[1744341935007,6.4887,1541.2,1541.0,0.8252]
[1744341936301,12.97747,1541.2,1541.0,0.8252]
[1744341936485,6.48865,1541.2,1541.0,0.8252]
[1744341936690,6.48913,1541.1,1540.8,0.8252]
[1744341937198,6.48851,1541.2,1540.8,0.8252]
[1744341937396,6.48851,1541.2,1540.8,7.31517]
[1744341937597,6.48851,1541.2,1540.9,6.48964]
[1744341938489,6.48892,1541.1,1540.8,7.31517]
[1744341939109,12.9773,1541.2,1540.8,7.31517]
[1744341939459,6.489,1541.1,1540.8,0.8252]
[1744341939703,6.48967,1541.0,1540.8,0.8252]
[1744341939903,6.48971,1540.9,1540.7,4.84442836]
[1744341940068,6.48967,1541.0,1540.7,4.84442836]
[1744341940396,6.48967,1541.0,1540.7,11.33482836]
[1744341940995,6.48967,1541.0,1540.7,6.4904]
[1744341943031,6.48972,1540.9,1540.6,12.16041836]